bitfinex/quotes_BTCUSD_20241103
["timestamp","ask_amount","ask_price","bid_price","bid_amount"]
[1730667539565,0.00136764,68958.0,68957.0,0.62073916]
[1730667540541,0.00136764,68958.0,68957.0,0.61435693]
[1730667540777,0.00136764,68958.0,68957.0,0.61635693]
[1730667541507,0.00136764,68958.0,68957.0,0.62273943]
[1730667541733,0.00136764,68958.0,68957.0,0.68731137]
[1730667542174,0.00136764,68958.0,68957.0,0.84624021]
[1730667542603,0.00136764,68958.0,68957.0,0.68731137]
[1730667542815,0.00136764,68958.0,68957.0,0.68732054]
[1730667543705,0.00136764,68958.0,68957.0,0.62273943]
[1730667548747,0.00136764,68958.0,68957.0,0.61635693]
[1730667548989,0.00136764,68958.0,68957.0,0.62273795]
[1730667550022,0.00136764,68958.0,68957.0,0.66576512]
[1730667550676,0.00136764,68958.0,68957.0,0.66176353]
[1730667550865,0.00136764,68958.0,68957.0,0.61873795]
[1730667551073,0.00136764,68958.0,68957.0,0.62273795]
[1730667551994,0.00136764,68958.0,68957.0,0.61873795]
[1730667552224,0.09276771,68984.0,68957.0,0.61873795]
[1730667552225,0.21835809,68988.0,68987.0,0.142459]
[1730667552484,0.21835809,68988.0,68987.0,0.33426823]
[1730667552744,0.21835809,68988.0,68987.0,0.33626823]
[1730667552970,0.21835809,68988.0,68987.0,0.25437663]
[1730667553225,0.000821,68990.0,68988.0,0.242457]
[1730667553691,0.000821,68990.0,68988.0,0.38825404]
[1730667553914,0.000821,68990.0,68988.0,0.39646173]
[1730667554179,0.000821,68990.0,68988.0,0.52343702]
[1730667555328,0.000821,68990.0,68988.0,0.39646173]
[1730667555565,0.000821,68990.0,68988.0,0.40746173]
[1730667555782,0.000821,68990.0,68988.0,0.42046173]
[1730667558204,0.000821,68990.0,68988.0,0.42246173]
[1730667558418,0.000821,68990.0,68988.0,0.42046173]
[1730667558644,0.000821,68990.0,68988.0,0.55940023]
[1730667560670,0.000821,68990.0,68988.0,0.42046173]
[1730667563803,0.000821,68990.0,68988.0,0.54796173]
[1730667564019,0.000821,68990.0,68988.0,0.54996173]
[1730667568175,0.000821,68990.0,68988.0,0.54796173]
[1730667568626,0.000821,68990.0,68988.0,0.54996173]
[1730667569490,0.000821,68990.0,68988.0,0.54796173]
[1730667569966,0.000821,68990.0,68988.0,0.50246173]
[1730667570462,0.000821,68990.0,68988.0,0.64828747]
[1730667570687,0.000821,68990.0,68988.0,0.64628747]
[1730667570913,0.000821,68990.0,68988.0,0.64828747]
[1730667571810,0.000821,68990.0,68988.0,0.50246173]
[1730667574171,7.5e-07,69004.0,69003.0,0.042]
[1730667574399,7.5e-07,69004.0,69003.0,0.6182945]
[1730667574624,7.5e-07,69004.0,69003.0,0.70439905]
[1730667574891,0.2939525,69012.0,69011.0,0.33422223]
[1730667575119,0.2939525,69012.0,69011.0,0.47801927]
[1730667575377,0.07559441,69012.0,69011.0,0.48944654]
[1730667575623,0.07559441,69012.0,69011.0,0.61664229]
[1730667576102,0.07559441,69012.0,69011.0,0.48944654]
[1730667576324,0.07559441,69012.0,69011.0,0.51344654]
[1730667581616,0.07559441,69012.0,69011.0,0.51144654]
[1730667581828,0.07559441,69012.0,69011.0,0.51344654]
[1730667583389,0.07559441,69012.0,69011.0,0.51144654]
[1730667583613,0.07559441,69012.0,69011.0,0.51344654]
[1730667583830,0.07559441,69012.0,69011.0,0.51144654]
[1730667584037,0.07559441,69012.0,69011.0,0.42663731]
[1730667586186,0.07559441,69012.0,69011.0,0.54811234]
[1730667588555,0.07559441,69012.0,69011.0,0.42663731]
[1730667590301,0.07559441,69012.0,69011.0,0.42163731]
[1730667591183,0.07559441,69012.0,69011.0,0.41663731]
[1730667592118,0.07559441,69012.0,69011.0,0.42163731]
[1730667593260,0.07559441,69012.0,69011.0,0.41663731]
[1730667594155,0.07559441,69012.0,69011.0,0.41463731]
[1730667594375,0.07559441,69012.0,69011.0,0.27084027]
[1730667594869,0.07559441,69012.0,69011.0,0.36226096]
[1730667595082,0.07559441,69012.0,69011.0,0.27084027]
[1730667598213,0.07559441,69012.0,69011.0,0.41663731]
[1730667599076,0.07559441,69012.0,69011.0,0.41463731]
[1730667599716,0.07559441,69012.0,69011.0,0.41663731]
[1730667600592,0.07559441,69012.0,69011.0,0.41463731]
[1730667600819,0.07559441,69012.0,69011.0,0.54625706]
[1730667601257,0.07559441,69012.0,69011.0,0.55125706]
[1730667601498,0.07559441,69012.0,69011.0,0.63605706]
[1730667601745,0.07559441,69012.0,69011.0,0.64441458]
[1730667602615,0.06874086,69027.0,69026.0,0.142385]
[1730667604000,0.06874086,69027.0,69026.0,0.51515556]
[1730667604882,0.06874086,69027.0,69026.0,0.51115556]
[1730667605128,0.06874086,69027.0,69026.0,0.51815556]
[1730667605795,0.06874086,69027.0,69026.0,0.59596479]
[1730667606021,0.06874086,69027.0,69026.0,0.39518204]
[1730667606240,0.06874086,69027.0,69026.0,0.40518204]
[1730667606460,0.06874086,69027.0,69026.0,0.40018204]
[1730667607116,0.06874086,69027.0,69026.0,0.39318204]
[1730667607333,0.06874086,69027.0,69026.0,0.158385]
[1730667608458,0.06874086,69027.0,69026.0,0.147385]
[1730667608674,0.06874086,69027.0,69026.0,0.154385]
[1730667608888,0.06874086,69027.0,69026.0,0.144385]
[1730667609106,0.06874086,69027.0,69026.0,0.158385]
[1730667609345,0.06874086,69027.0,69026.0,0.26023852]
[1730667610043,0.06874086,69027.0,69026.0,0.25123852]
[1730667610271,0.06874086,69027.0,69026.0,0.25323852]
[1730667610494,0.06874086,69027.0,69026.0,0.26223852]
[1730667611138,0.06874086,69027.0,69026.0,0.160385]
[1730667611360,0.06874086,69027.0,69026.0,0.43658204]
[1730667611577,0.06874086,69027.0,69026.0,0.39028204]
[1730667612450,0.06874086,69027.0,69026.0,0.160385]
[1730667612902,0.06874086,69027.0,69026.0,0.028]
[1730667613182,0.19934086,69027.0,69026.0,0.028]
[1730667613433,0.19934086,69027.0,69026.0,0.023]
[1730667613646,0.06874086,69027.0,69026.0,0.30918204]
[1730667613867,0.06874086,69027.0,69026.0,0.149385]
[1730667614084,0.03374086,69027.0,69026.0,0.149385]
[1730667614299,0.03474086,69027.0,69026.0,0.151385]
[1730667614731,0.03374086,69027.0,69026.0,0.151385]
[1730667614946,0.03374086,69027.0,69026.0,0.137385]
[1730667615169,0.03324086,69027.0,69026.0,0.141385]
[1730667615619,0.03324086,69027.0,69026.0,0.135385]
[1730667615844,0.03324086,69027.0,69026.0,0.149385]
[1730667616085,0.03324086,69027.0,69023.0,0.005]
[1730667616321,0.03324086,69027.0,69022.0,0.262783]
[1730667616322,0.03324086,69027.0,69024.0,0.005]
[1730667616539,0.16362386,69027.0,69026.0,0.01]
[1730667616757,0.16362386,69027.0,69026.0,0.009]
[1730667617199,0.130386,69026.0,69021.0,0.135393]
[1730667617440,0.03324086,69027.0,69023.0,0.13039]
[1730667617654,0.16662486,69027.0,69023.0,0.13039]
[1730667617872,0.16662486,69027.0,69024.0,0.01042017]
[1730667618081,0.130386,69026.0,69024.0,0.01042017]
[1730667618344,0.130387,69025.0,69021.0,0.005]
[1730667618577,0.130387,69025.0,68978.0,0.12858018]
[1730667618578,0.309778,69024.0,69015.0,0.007]
[1730667618811,0.309778,69024.0,69011.0,0.262463]
[1730667618812,0.211991,69023.0,69022.0,0.01042515]
[1730667619035,0.211991,69023.0,69015.0,0.132405]
[1730667619036,0.130397,69020.0,69015.0,0.132405]
[1730667619515,0.0816,69023.0,69015.0,0.002]
[1730667619732,0.0816,69023.0,69021.0,0.004]
[1730667619733,0.18429549,69022.0,69021.0,0.004]
[1730667619953,0.18429549,69022.0,69014.0,0.007]
[1730667619954,0.130399,69019.0,69015.0,0.005]
[1730667620166,0.130399,69019.0,69015.0,0.144406]
[1730667620393,0.130398,69020.0,69015.0,0.144406]
[1730667620614,0.130397,69020.0,69015.0,0.144406]
[1730667620865,0.130398,69019.0,69015.0,0.140406]
[1730667621072,0.130396,69021.0,69016.0,0.130402]
[1730667621297,0.130396,69021.0,69017.0,0.130402]
[1730667621545,0.0816,69023.0,69022.0,0.130393]
[1730667621777,0.04336243,69026.0,69021.0,0.267789]
[1730667621992,0.03324086,69027.0,69026.0,0.130385]
[1730667622210,0.03164086,69027.0,69026.0,0.130385]
[1730667622643,0.03164086,69027.0,69026.0,0.132385]
[1730667623076,0.03154086,69027.0,69024.0,0.130388]
[1730667623951,0.03154086,69027.0,69025.0,0.01047646]
[1730667624663,0.03154086,69027.0,69026.0,0.001]
[1730667624871,0.03154086,69027.0,69025.0,0.01047646]
[1730667625322,0.03154086,69027.0,69026.0,0.16064541]
[1730667625973,0.03154086,69027.0,69026.0,0.16464541]
[1730667626183,0.03154086,69027.0,69026.0,0.14985896]
[1730667626392,0.03154086,69027.0,69026.0,0.15185896]
[1730667626601,0.03154086,69027.0,69026.0,0.397656]
[1730667627016,0.03254086,69027.0,69026.0,0.397656]
[1730667627239,0.03254086,69027.0,69026.0,0.51796388]
[1730667627449,0.03154086,69027.0,69026.0,0.51796388]
[1730667627666,0.03154086,69027.0,69026.0,0.393656]
[1730667627881,0.03154086,69027.0,69026.0,0.399656]
[1730667628483,0.03154086,69027.0,69026.0,0.404656]
[1730667629214,0.03154086,69027.0,69026.0,0.409656]
[1730667629440,0.03154086,69027.0,69026.0,0.53086388]
[1730667631235,0.03154086,69027.0,69026.0,0.52886388]
[1730667631461,0.03154086,69027.0,69026.0,0.407656]
[1730667632757,0.03154086,69027.0,69026.0,0.409656]
[1730667632965,0.03154086,69027.0,69026.0,0.407656]
[1730667633398,0.03154086,69027.0,69026.0,0.411296]
[1730667634262,0.03154086,69027.0,69026.0,0.409296]
[1730667634504,0.03154086,69027.0,69026.0,0.53226788]
[1730667635169,0.03154086,69027.0,69026.0,0.53026788]
[1730667635375,0.03154086,69027.0,69026.0,0.53226788]
[1730667639564,0.03154086,69027.0,69026.0,0.58166788]
[1730667640217,0.03154086,69027.0,69026.0,0.66206788]
[1730667640434,0.03154086,69027.0,69026.0,0.67041896]
[1730667641309,0.03154086,69027.0,69026.0,0.67741896]
[1730667642404,0.00256686,69027.0,69026.0,0.70041896]
[1730667642658,0.00256686,69027.0,69026.0,0.67541896]
[1730667643115,0.00256686,69027.0,69026.0,0.55444708]
[1730667643334,0.00256686,69027.0,69026.0,0.54344708]
[1730667643558,0.00256686,69027.0,69026.0,0.55744708]
[1730667643782,0.00256686,69027.0,69026.0,0.57144708]
[1730667643994,8.6e-07,69027.0,69026.0,0.58044708]
[1730667644262,8.6e-07,69027.0,69026.0,0.72379719]
[1730667644476,8.6e-07,69027.0,69026.0,0.73779719]
[1730667644694,8.6e-07,69027.0,69026.0,0.72379719]
[1730667644908,8.6e-07,69027.0,69026.0,0.70979719]
[1730667645121,8.6e-07,69027.0,69026.0,0.72379719]
[1730667645775,8.6e-07,69027.0,69026.0,0.70779719]
[1730667646222,8.6e-07,69027.0,69026.0,0.72179719]
[1730667646456,8.6e-07,69027.0,69026.0,0.71544611]
[1730667646693,8.6e-07,69027.0,69026.0,0.7377886]
[1730667647620,8.6e-07,69027.0,69026.0,0.7237886]
[1730667647849,8.6e-07,69027.0,69026.0,0.7377886]
[1730667648076,8.6e-07,69027.0,69026.0,0.7668386]
[1730667648305,8.6e-07,69027.0,69026.0,0.7528386]
[1730667648520,8.6e-07,69027.0,69026.0,0.7668386]
[1730667650508,8.6e-07,69027.0,69026.0,0.76683729]
[1730667651051,8.6e-07,69027.0,69026.0,0.75283729]
[1730667651407,8.6e-07,69027.0,69026.0,0.94768615]
[1730667652173,8.6e-07,69027.0,69026.0,0.96168615]
[1730667652591,8.6e-07,69027.0,69026.0,0.94768615]
[1730667652790,8.6e-07,69027.0,69026.0,0.93368615]
[1730667652990,8.6e-07,69027.0,69026.0,0.94768615]
[1730667653255,8.6e-07,69027.0,69026.0,0.96168615]
[1730667653893,8.6e-07,69027.0,69026.0,0.95534497]
[1730667654084,8.6e-07,69027.0,69026.0,0.88880901]
[1730667654286,8.6e-07,69027.0,69026.0,0.831305]
[1730667654490,8.6e-07,69027.0,69026.0,0.96169]
[1730667655598,8.6e-07,69027.0,69026.0,0.95969]
[1730667656568,8.6e-07,69027.0,69026.0,0.81833989]
[1730667657000,8.6e-07,69027.0,69026.0,0.77633989]
[1730667657213,8.6e-07,69027.0,69026.0,0.78133989]
[1730667657435,8.6e-07,69027.0,69026.0,0.77499486]
[1730667658127,8.6e-07,69027.0,69026.0,0.78134499]
[1730667658985,8.6e-07,69027.0,69026.0,0.79534499]
[1730667659255,8.6e-07,69027.0,69026.0,0.78134499]
[1730667659729,8.6e-07,69027.0,69026.0,0.92641272]
[1730667659962,8.6e-07,69027.0,69026.0,0.79534499]
[1730667660198,8.6e-07,69027.0,69026.0,0.78134499]
[1730667660476,0.000821,69032.0,69026.0,0.78134499]
[1730667660477,0.000821,69032.0,69026.0,1.12750942]
[1730667660760,0.09742443,69083.0,69026.0,1.12750942]
[1730667660761,0.91252364,69074.0,69049.0,0.023]
[1730667660989,0.86923138,69074.0,69073.0,0.265296]
[1730667661252,0.86923138,69074.0,69073.0,0.242296]
[1730667661511,0.86923138,69074.0,69073.0,0.25209636]
[1730667661776,0.86923138,69081.0,69080.0,0.237283]
[1730667662023,4.478e-05,69086.0,69081.0,0.247281]
[1730667662273,0.87023138,69099.0,69081.0,0.360481]
[1730667662274,0.001,69099.0,69081.0,0.360481]
[1730667662495,0.001,69099.0,69096.0,0.240253]
[1730667662750,0.001,69099.0,69096.0,0.33267743]
[1730667663004,0.001,69099.0,69096.0,0.34949705]
[1730667663479,0.001,69099.0,69096.0,0.55251736]
[1730667663710,0.001,69099.0,69096.0,0.55051736]
[1730667664255,0.001,69099.0,69096.0,0.55551736]
[1730667664496,0.1,69111.0,69110.0,0.4198747]
[1730667664497,0.06344921,69111.0,69110.0,0.4198747]
[1730667664725,0.06344921,69111.0,69110.0,0.56567174]
[1730667664935,0.06344921,69111.0,69110.0,0.57581403]
[1730667665144,0.06344921,69111.0,69110.0,0.57081403]
[1730667665357,0.04344921,69111.0,69110.0,0.57081403]
[1730667665607,0.04344921,69111.0,69110.0,0.54281403]
[1730667665824,0.04344921,69111.0,69110.0,0.24557229]
[1730667666035,0.04344921,69111.0,69110.0,0.39136933]
[1730667666253,0.04344921,69111.0,69110.0,0.29136933]
[1730667666468,0.04344921,69111.0,69110.0,0.01334529]
[1730667667389,0.04344921,69111.0,69110.0,0.02414229]
[1730667667390,0.17367421,69111.0,69110.0,0.02414229]
[1730667667602,0.04344921,69111.0,69110.0,0.03814229]
[1730667667811,0.04344921,69111.0,69110.0,0.028]
[1730667668024,0.04344921,69111.0,69110.0,0.014]
[1730667668233,0.04344921,69111.0,69110.0,0.02182421]
[1730667668446,0.04344921,69111.0,69110.0,0.02382421]
[1730667668659,0.04344921,69111.0,69110.0,0.00982421]
[1730667668871,0.04426921,69111.0,69110.0,0.00982421]
[1730667669118,0.04426921,69111.0,69110.0,0.01482421]
[1730667669366,0.04426921,69111.0,69110.0,0.01682421]
[1730667669646,0.04426921,69111.0,69110.0,0.14325421]
[1730667669863,0.04426921,69111.0,69110.0,0.14525421]
[1730667670112,0.04426921,69111.0,69110.0,0.01102721]
[1730667670330,0.04426921,69111.0,69110.0,0.01902721]
[1730667670548,0.04426921,69111.0,69110.0,0.14925421]
[1730667671001,0.04426921,69111.0,69110.0,0.14825421]
[1730667671206,0.04426921,69111.0,69110.0,0.02002721]
[1730667671639,0.20496433,69111.0,69110.0,0.00782421]
[1730667671850,0.17449421,69111.0,69110.0,0.00782421]
[1730667672065,0.17449421,69111.0,69110.0,0.01]
[1730667672066,0.04426921,69111.0,69110.0,0.01]
[1730667672317,0.04426921,69111.0,69110.0,0.007]
[1730667672752,0.04426921,69111.0,69110.0,0.01483033]
[1730667672979,0.04426921,69111.0,69110.0,0.02503333]
[1730667673201,0.04426921,69111.0,69110.0,0.01803333]
[1730667673436,0.04426921,69111.0,69110.0,0.14626033]
[1730667673650,0.13734994,69111.0,69110.0,0.14626033]
[1730667673860,0.04426921,69111.0,69110.0,0.14126033]
[1730667674505,0.04426921,69111.0,69110.0,0.14326033]
[1730667674749,0.04426921,69111.0,69110.0,0.01103333]
[1730667675195,0.04426921,69111.0,69110.0,0.01603333]
[1730667675415,0.04426921,69111.0,69110.0,0.61810109]
[1730667675635,0.09303842,69117.0,69116.0,0.008203]
[1730667675851,0.09303842,69117.0,69116.0,0.38621504]
[1730667676089,0.09303842,69117.0,69116.0,0.39402686]
[1730667676299,0.09303842,69117.0,69116.0,0.39202686]
[1730667676525,0.09303842,69117.0,69116.0,0.39402686]
[1730667676977,0.09303842,69117.0,69116.0,0.39202686]
[1730667677213,0.005,69140.0,69118.0,0.240415]
[1730667677436,0.005,69140.0,69118.0,0.38621204]
[1730667677437,0.21704372,69132.0,69118.0,0.38621204]
[1730667677673,0.22699892,69139.0,69118.0,0.39400581]
[1730667677876,0.22699892,69139.0,69118.0,0.39200581]
[1730667677877,0.21704372,69138.0,69118.0,0.39200581]
[1730667678310,0.9816304,69133.0,69132.0,0.003203]
[1730667678518,0.9816304,69133.0,69132.0,0.005203]
[1730667679165,1.06719324,69133.0,69132.0,0.1430887]
[1730667679392,1.06719324,69133.0,69132.0,0.005203]
[1730667679603,1.04719324,69133.0,69132.0,0.1430887]
[1730667679863,1.04719324,69133.0,69132.0,0.135388]
[1730667680046,1.04719324,69133.0,69132.0,0.14345174]
[1730667680262,1.04719324,69133.0,69132.0,0.14545174]
[1730667680709,1.04719324,69133.0,69132.0,0.15145174]
[1730667680946,1.04801224,69133.0,69132.0,0.14945174]
[1730667681207,1.04801224,69133.0,69132.0,0.37564878]
[1730667681439,1.04801224,69133.0,69132.0,0.51664878]
[1730667681440,0.39285109,69133.0,69132.0,0.51664878]
[1730667681669,0.30728825,69133.0,69132.0,0.50864878]
[1730667681897,0.30728825,69133.0,69132.0,0.37464878]
[1730667682126,0.30728825,69133.0,69132.0,0.48164878]
[1730667682346,0.30728825,69133.0,69132.0,0.48664878]
[1730667682591,0.30728825,69133.0,69132.0,0.48164878]
[1730667682813,0.30728825,69133.0,69132.0,0.49564878]
[1730667683038,0.30728825,69133.0,69132.0,0.48164878]
[1730667683512,0.30728825,69133.0,69132.0,0.49164878]
[1730667683725,0.30728825,69133.0,69132.0,0.47464878]
[1730667683946,0.30728825,69133.0,69132.0,0.47264878]
[1730667684148,0.30728825,69133.0,69132.0,0.48864878]
[1730667684362,0.30728825,69133.0,69132.0,0.48664878]
[1730667684586,0.30728825,69133.0,69132.0,0.47464878]
[1730667685020,0.30728825,69133.0,69132.0,0.49664878]
[1730667685249,0.30728825,69133.0,69132.0,0.49864878]
[1730667685460,0.30728825,69133.0,69132.0,0.48464878]
[1730667685673,0.30728825,69133.0,69132.0,0.49264878]
[1730667685919,0.30728825,69133.0,69132.0,0.49464878]
[1730667686160,0.30728825,69133.0,69132.0,0.6519662]
[1730667686373,0.30728825,69133.0,69132.0,0.6579662]
[1730667686597,0.30728825,69133.0,69132.0,0.6709662]
[1730667686812,0.30728825,69133.0,69132.0,0.6389662]
[1730667687020,0.30728825,69133.0,69132.0,0.6309662]
[1730667687438,0.30728825,69133.0,69132.0,0.6289662]
[1730667687652,0.30728825,69133.0,69132.0,0.6559662]
[1730667687865,0.30728825,69133.0,69132.0,0.6639662]
[1730667688072,0.30728825,69133.0,69132.0,0.6749662]
[1730667688280,0.30728825,69133.0,69132.0,0.6769662]
[1730667688496,0.30728825,69133.0,69132.0,0.6659662]
[1730667688729,0.30728825,69133.0,69132.0,0.6789662]
[1730667688975,0.30728825,69133.0,69132.0,0.6639662]
[1730667689237,0.30728825,69133.0,69132.0,0.6539662]
[1730667689493,0.30728825,69133.0,69132.0,0.68524148]
[1730667689717,0.30728825,69133.0,69132.0,0.67124148]
[1730667689941,0.30728825,69133.0,69132.0,0.66924148]
[1730667690168,0.30728825,69133.0,69132.0,0.67624148]
[1730667690671,0.30728825,69133.0,69132.0,0.69024148]
[1730667690890,0.30728825,69133.0,69132.0,0.67624148]
[1730667691132,0.30728825,69133.0,69132.0,0.67424148]
[1730667691411,0.30728825,69133.0,69132.0,0.66224148]
[1730667691652,0.27835825,69133.0,69132.0,0.68624148]
[1730667691900,0.27835825,69133.0,69132.0,0.69024148]
[1730667692152,0.27835825,69133.0,69132.0,0.67224148]
[1730667692390,0.27835825,69133.0,69132.0,0.68624148]
[1730667692653,0.15025825,69133.0,69132.0,0.73603929]
[1730667693166,0.15025825,69133.0,69132.0,0.70803929]
[1730667693637,0.15025825,69133.0,69132.0,0.72203929]
[1730667694116,0.15025825,69133.0,69132.0,0.85935671]
[1730667694336,0.15025825,69133.0,69132.0,0.87335671]
[1730667694557,0.15025825,69133.0,69132.0,0.88735671]
[1730667694768,0.15025825,69133.0,69132.0,0.87335671]
[1730667694984,0.15025825,69133.0,69132.0,0.72203929]
[1730667695485,0.15025825,69133.0,69132.0,0.87335671]
[1730667695697,0.15025825,69133.0,69132.0,0.88735671]
[1730667695907,0.15025825,69133.0,69132.0,0.87335671]
[1730667696123,0.15025825,69133.0,69132.0,0.86708362]
[1730667696338,0.15025825,69133.0,69132.0,0.7220334]
[1730667696774,0.15025825,69133.0,69132.0,0.73820333]
[1730667696992,0.15025825,69133.0,69132.0,0.88952075]
[1730667697202,0.15025825,69133.0,69132.0,0.72420333]
[1730667697629,0.15025825,69133.0,69132.0,0.73820333]
[1730667698067,0.15025825,69133.0,69132.0,0.71020333]
[1730667698497,0.15025825,69133.0,69132.0,0.72420333]
[1730667698927,0.15025825,69133.0,69132.0,0.56893959]
[1730667699135,0.15025825,69133.0,69132.0,0.58793959]
[1730667699355,0.15025825,69133.0,69132.0,0.57193959]
[1730667699776,0.15025825,69133.0,69132.0,0.56694429]
[1730667699990,0.15025825,69133.0,69132.0,0.58594429]
[1730667700439,0.15025825,69133.0,69132.0,0.58794429]
[1730667700657,0.15025825,69133.0,69132.0,0.57394429]
[1730667700869,0.15025825,69133.0,69132.0,0.58794429]
[1730667701076,0.15025825,69133.0,69132.0,0.58594429]
[1730667701286,0.15025825,69133.0,69132.0,0.58794429]
[1730667701532,0.15025825,69133.0,69132.0,0.60194429]
[1730667701782,0.15025825,69133.0,69132.0,0.57394429]
[1730667701995,0.15025825,69133.0,69132.0,0.57594429]
[1730667702205,0.14865825,69133.0,69132.0,0.58994429]
[1730667702413,0.14865825,69133.0,69132.0,0.57594429]
[1730667702871,0.14869865,69133.0,69132.0,0.57594429]
[1730667703095,0.14869865,69133.0,69132.0,0.61899429]
[1730667703324,0.14869865,69133.0,69132.0,0.63299429]
[1730667703749,0.14859865,69133.0,69132.0,0.61499429]
[1730667703958,0.14859865,69133.0,69132.0,0.62899429]
[1730667704177,0.14859865,69133.0,69132.0,0.63299429]
[1730667704829,0.14859865,69133.0,69132.0,0.62846236]
[1730667705041,0.14859865,69133.0,69132.0,0.63246236]
[1730667707022,0.14859865,69133.0,69132.0,0.63248909]
[1730667707241,0.14859865,69133.0,69132.0,0.69037809]
[1730667707674,0.313736,69163.0,69160.0,0.005203]
[1730667707929,0.313736,69163.0,69161.0,0.13013]
[1730667708130,0.09669228,69163.0,69161.0,0.13013]
[1730667708787,0.09669228,69163.0,69159.0,0.003203]
[1730667708996,0.130131,69161.0,69160.0,0.003]
[1730667709219,0.130131,69161.0,69157.0,0.130137]
[1730667709489,0.09669228,69163.0,69156.0,0.002]
[1730667709490,0.260258,69162.0,69161.0,0.003]
[1730667709689,0.09669228,69163.0,69162.0,0.002]
[1730667710123,0.09669228,69163.0,69160.0,0.132132]
[1730667710332,0.09669228,69163.0,69160.0,0.003]
[1730667710595,0.09669228,69163.0,69162.0,0.130129]
[1730667710809,0.09669228,69163.0,69162.0,0.132129]
[1730667711039,0.09669228,69163.0,69162.0,0.134129]
[1730667711280,0.09669228,69163.0,69162.0,0.132129]
[1730667711527,0.09669228,69163.0,69162.0,0.134129]
[1730667712247,0.09669228,69163.0,69161.0,0.130131]
[1730667712465,0.09669228,69163.0,69162.0,0.140129]
[1730667712716,0.09669228,69163.0,69162.0,0.146129]
[1730667713411,0.09669228,69163.0,69162.0,0.140129]
[1730667713640,0.09669228,69163.0,69162.0,0.138129]
[1730667713865,0.09669228,69163.0,69162.0,0.008]
[1730667714070,0.09669228,69163.0,69160.0,0.21704372]
[1730667714283,0.09669228,69163.0,69161.0,0.13013]
[1730667714497,0.09669228,69163.0,69161.0,0.13813]
[1730667714713,0.09669228,69163.0,69161.0,0.13013]
[1730667714899,0.09669228,69163.0,69162.0,0.140129]
[1730667715357,0.24460551,69163.0,69162.0,0.006]
[1730667715824,0.22181928,69163.0,69162.0,0.006]
[1730667716068,0.22861628,69163.0,69162.0,0.006]
[1730667716294,0.22861628,69163.0,69153.0,0.21704372]
[1730667716295,0.130144,69154.0,69153.0,0.21704372]
[1730667716510,0.135144,69154.0,69153.0,0.21704372]
[1730667716737,0.24205284,69154.0,69153.0,0.21704372]
[1730667716955,0.005,69154.0,69144.0,0.21704372]
[1730667717177,0.0486,69147.0,69144.0,0.21704372]
[1730667717401,0.130161,69145.0,69144.0,0.21704372]
[1730667718074,0.308914,69147.0,69142.0,0.002]
[1730667718289,0.260322,69145.0,69142.0,0.002]
[1730667718512,0.390477,69146.0,69145.0,0.002]
[1730667718951,0.130162,69145.0,69141.0,0.132168]
[1730667719162,0.130162,69145.0,69144.0,0.005]
[1730667719606,0.13016,69146.0,69144.0,0.005]
[1730667720042,0.0486,69147.0,69145.0,0.13016]
[1730667720260,0.0486,69147.0,69146.0,0.002]
[1730667720479,0.0486,69147.0,69145.0,0.00968603]
[1730667720759,0.005,69149.0,69146.0,0.13991696]
[1730667720972,0.005,69149.0,69147.0,0.130156]
[1730667721409,0.005,69149.0,69148.0,0.00977047]
[1730667721848,0.005,69149.0,69148.0,0.01177047]
[1730667722092,0.016,69150.0,69148.0,0.00977047]
[1730667722312,0.135148,69152.0,69149.0,0.002]
[1730667722538,0.005,69150.0,69149.0,0.002]
[1730667723719,0.130156,69148.0,69146.0,0.003]
[1730667723966,0.005,69150.0,69147.0,0.130157]
[1730667724902,0.005,69150.0,69148.0,0.002304]
[1730667725117,0.260286,69155.0,69149.0,0.002]
[1730667725331,0.005,69150.0,69149.0,0.002]
[1730667726059,0.005,69152.0,69151.0,0.002]
[1730667726296,0.135148,69152.0,69151.0,0.002]
[1730667726717,0.005,69148.0,69146.0,0.002]
[1730667727012,0.005,69148.0,69147.0,0.130157]
[1730667727437,0.130149,69151.0,69147.0,0.130157]
[1730667727688,0.005,69151.0,69150.0,0.002]
[1730667727902,0.135148,69152.0,69149.0,0.003]
[1730667728123,0.005,69150.0,69147.0,0.130156]
[1730667728356,0.005,69150.0,69147.0,0.134156]
[1730667728573,0.005,69148.0,69147.0,0.134156]
[1730667728791,0.005,69150.0,69147.0,0.130156]
[1730667729006,0.005,69149.0,69147.0,0.13992677]
[1730667729230,0.0203118,69149.0,69147.0,0.00977077]
[1730667729458,0.130155,69148.0,69147.0,0.00977077]
[1730667729676,0.130168,69142.0,69138.0,0.130173]
[1730667730125,0.26033,69143.0,69135.0,0.22024672]
[1730667730126,0.26033,69143.0,69139.0,0.0097945]
[1730667730338,0.26033,69143.0,69135.0,0.22024672]
[1730667730339,0.130168,69142.0,69138.0,0.130174]
[1730667730780,0.130172,69139.0,69135.0,0.35042572]
[1730667731011,0.260348,69138.0,69129.0,0.103203]
[1730667731231,0.04134624,69137.0,69136.0,0.21704372]
[1730667731477,0.15131742,69140.0,69130.0,0.002]
[1730667731478,0.130183,69133.0,69130.0,0.002]
[1730667731694,0.260352,69137.0,69130.0,0.002]
[1730667731929,0.052,69142.0,69133.0,0.260367]
[1730667731930,0.15131742,69135.0,69133.0,0.260367]
[1730667732157,0.005,69141.0,69133.0,0.003203]
[1730667732375,0.08662607,69148.0,69136.0,0.130178]
[1730667732376,0.005,69138.0,69136.0,0.130178]
[1730667732561,0.260327,69144.0,69133.0,0.003203]
[1730667732562,0.001,69143.0,69134.0,0.260363]
[1730667732812,0.001,69143.0,69132.0,0.264008]
[1730667732813,0.005,69138.0,69132.0,0.264008]
[1730667733036,0.005,69138.0,69134.0,0.130181]
[1730667733254,0.005,69138.0,69134.0,0.21704372]
[1730667733539,0.005,69138.0,69135.0,0.130179]
[1730667733753,0.13018,69135.0,69133.0,0.002]
[1730667733971,0.265352,69137.0,69132.0,0.001638]
[1730667733972,0.1699149,69134.0,69132.0,0.001638]
[1730667734638,0.130183,69133.0,69132.0,0.001638]
[1730667734864,0.001,69133.0,69132.0,0.008638]
[1730667735090,0.1699149,69134.0,69132.0,0.001638]
[1730667735321,0.04370679,69133.0,69132.0,0.007638]
[1730667735588,0.04330679,69133.0,69132.0,0.007638]
[1730667735806,0.04330679,69133.0,69132.0,0.001638]
[1730667736042,0.04430679,69133.0,69132.0,0.008638]
[1730667736279,0.001,69133.0,69132.0,0.013638]
[1730667736520,0.131183,69133.0,69132.0,0.006638]
[1730667736967,0.13298,69133.0,69132.0,0.006638]
[1730667737862,0.13398,69133.0,69132.0,0.013638]
[1730667738089,0.22662154,69133.0,69132.0,0.006638]